fUSD/lending_fUSD_20260314
["ID","MTS","AMOUNT","RATE_DAILY","PERIOD"]
[408350449,1773480632500,-1000.0,0.0001926,2]
[408350450,1773480632509,-166.66,0.00019276,2]
[408350451,1773480632519,-800.0,0.00019292,2]
[408350452,1773480632529,-200.0,0.000193,7]
[408350453,1773480632539,-700.0,0.00019341,2]
[408350454,1773480632548,-168.0,0.00019376,2]
[408350455,1773480632558,-897.0,0.00019397,2]
[408350456,1773480632567,-1000.0,0.000194,2]
[408350457,1773480632577,-500.0,0.000194,7]
[408350458,1773480632587,-900.59,0.00019425,2]
[408350459,1773480632596,-2000.0,0.000195,2]
[408350460,1773480632606,-800.0,0.000195,7]
[408350461,1773480632616,-287.61899177,0.0001953,2]
[408350462,1773480632625,-1000.0,0.00019534,2]
[408350463,1773480632636,-154.4451775,0.00019572,2]
[408350464,1773480632654,-1504.64,0.00019593,2]
[408350465,1773480632663,-150.0,0.00019599,2]
[408350466,1773480632673,-150.0,0.00019599,2]
[408350467,1773480632682,-708.29,0.00019599,2]
[408350468,1773480632693,-150.0,0.00019599,2]
[408350469,1773480632702,-500.0,0.00019599,2]
[408350470,1773480632711,-150.0,0.00019599,2]
[408350471,1773480632722,-150.0,0.00019599,2]
[408350472,1773480632732,-177.99151511,0.00019599,2]
[408350473,1773480632741,-500.0,0.00019599,2]
[408350474,1773480632751,-500.0,0.00019599,2]
[408350475,1773480632761,-150.0,0.00019599,2]
[408350476,1773480632770,-500.0,0.00019599,2]
[408350477,1773480632780,-150.0,0.00019599,2]
[408350478,1773480632789,-150.0,0.00019599,2]
[408350479,1773480632798,-500.0,0.00019599,2]
[408350480,1773480632807,-577.0,0.00019599,2]
[408350481,1773480632817,-500.0,0.00019599,2]
[408350482,1773480632826,-500.0,0.00019599,2]
[408350483,1773480632835,-154.81144143,0.00019599,2]
[408350484,1773480632845,-150.0,0.00019599,2]
[408350485,1773480632858,-500.0,0.00019599,2]
[408350486,1773480632868,-150.0,0.00019599,2]
[408350487,1773480632878,-150.0,0.00019599,2]
[408350488,1773480632888,-157.44891138,0.00019599,2]
[408350489,1773480632897,-500.0,0.00019599,2]
[408350490,1773480632907,-150.0,0.00019599,2]
[408350491,1773480632916,-150.0,0.00019599,2]
[408350492,1773480632925,-500.0,0.00019599,2]
[408350493,1773480632935,-500.0,0.00019599,2]
[408350494,1773480632944,-150.0,0.00019599,2]
[408350495,1773480632954,-500.0,0.00019599,2]
[408350496,1773480632963,-150.0,0.00019599,2]
[408350497,1773480632972,-150.0,0.00019599,2]
[408350498,1773480632982,-1100.0,0.000196,7]
[408350499,1773480632991,-150.0,0.00019654,2]
[408350500,1773480633002,-150.0,0.00019654,2]
[408350501,1773480633017,-455.47206266,0.00019654,2]
[408350502,1773480633027,-150.0,0.00019654,2]
[408350503,1773480633036,-500.0,0.00019654,2]
[408350504,1773480633046,-500.0,0.00019654,2]
[408350505,1773480633058,-150.0,0.00019654,2]
[408350506,1773480633067,-500.0,0.00019654,2]
[408350507,1773480633077,-602.34407371,0.00019654,2]
[408350508,1773480633088,-577.0,0.00019654,2]
[408350509,1773480633097,-500.0,0.00019654,2]
[408350510,1773480633107,-500.0,0.00019654,2]
[408350511,1773480633116,-150.0,0.00019654,2]
[408350512,1773480633126,-500.0,0.00019654,2]
[408350513,1773480633136,-150.0,0.00019654,2]
[408350514,1773480633146,-150.0,0.00019654,2]
[408350515,1773480633156,-500.0,0.00019654,2]
[408350516,1773480633166,-163.35841306,0.00019654,2]
[408350517,1773480633175,-152.96458514,0.00019654,2]
[408350518,1773480633186,-500.0,0.00019654,2]
[408350519,1773480633196,-500.0,0.00019654,2]
[408350520,1773480633206,-150.0,0.00019654,2]
[408350521,1773480633216,-500.0,0.00019654,2]
[408350522,1773480633225,-150.0,0.00019654,2]
[408350523,1773480633235,-150.0,0.00019654,2]
[408350524,1773480633246,-150.0,0.00019671,2]
[408350525,1773480633257,-150.0,0.00019671,2]
[408350526,1773480633268,-150.0,0.00019671,2]
[408350527,1773480633278,-500.0,0.00019671,2]
[408350528,1773480633289,-500.0,0.00019671,2]
[408350529,1773480633298,-150.0,0.00019671,2]
[408350530,1773480633308,-150.0,0.00019671,2]
[408350531,1773480633318,-500.0,0.00019671,2]
[408350532,1773480633327,-500.0,0.00019671,2]
[408350533,1773480633337,-500.0,0.00019671,2]
[408350534,1773480633347,-150.0,0.00019671,2]
[408350535,1773480633356,-150.0,0.00019671,2]
[408350536,1773480633366,-150.0,0.00019671,2]
[408350537,1773480633376,-500.0,0.00019671,2]
[408350538,1773480633385,-731.8971,0.000197,2]
[408350539,1773480633395,-3495.05495892,0.000197,2]
[408350540,1773480633405,-1400.0,0.000197,7]
[408350541,1773480633414,-1054.32996726,0.000197,2]
[408350542,1773480633427,-945.67003274,0.000197,2]
[408350543,1773480633436,-150.0,0.00019709,2]
[408350544,1773480633445,-150.0,0.00019709,2]
[408350545,1773480633455,-270.48763024,0.00019709,2]
[408350546,1773480633465,-300.0,0.00019709,2]
[408350547,1773480633475,-500.0,0.00019709,2]
[408350548,1773480633484,-254.00301513,0.00019709,2]
[408350549,1773480633495,-500.0,0.00019709,2]
[408350550,1773480633504,-577.0,0.00019709,2]
[408350551,1773480633514,-300.0,0.00019709,2]
[408350552,1773480633523,-500.0,0.00019709,2]
[408350553,1773480633531,-150.0,0.00019709,2]
[408350554,1773480633542,-500.0,0.00019709,2]
[408350555,1773480633552,-150.0,0.00019709,2]
[408350556,1773480633562,-150.0,0.00019709,2]
[408350557,1773480633571,-500.0,0.00019709,2]
[408350558,1773480633581,-500.0,0.00019709,2]
[408350559,1773480633590,-446.1027469,0.00019709,2]
[408350560,1773480633600,-150.0,0.00019709,2]
[408350561,1773480633610,-500.0,0.00019709,2]
[408350562,1773480633619,-150.0,0.00019709,2]
[408350563,1773480633629,-200.89059592,0.00019709,2]
[408350564,1773480633639,-1461.48110588,0.00019709,2]
[408350565,1773480633649,-617.37656424,0.00019709,2]
[408350566,1773480633658,-168.0,0.00019719,2]
[408350567,1773480633668,-3495.0549589,0.00019722,2]
[408350568,1773480633679,-150.0,0.00019726,2]
[408350569,1773480633689,-150.0,0.00019726,2]
[408350570,1773480633700,-500.0,0.00019726,2]
[408350571,1773480633710,-500.0,0.00019726,2]
[408350572,1773480633719,-500.0,0.00019726,2]
[408350573,1773480633729,-500.0,0.00019726,2]
[408350574,1773480633739,-500.0,0.00019726,2]
[408350575,1773480633748,-500.0,0.00019726,2]
[408350576,1773480633758,-276.45358833,0.00019726,2]
[408350577,1773480633769,-800.0,0.00019736,2]
[408350578,1773480633779,-3495.0549589,0.00019744,2]
[408350579,1773480633789,-150.0,0.00019763,2]
[408350580,1773480633802,-157.95050099,0.00019763,2]
[408350581,1773480633819,-500.0,0.00019763,2]
[408350582,1773480633830,-500.0,0.00019763,2]
[408350583,1773480633840,-577.0,0.00019763,2]
[408350584,1773480633850,-500.0,0.00019763,2]
[408350585,1773480633860,-278.52663822,0.00019763,2]
[408350586,1773480633871,-337.38563793,0.00019763,2]
[408350587,1773480633880,-150.0,0.00019763,2]
[408350588,1773480633890,-150.0,0.00019763,2]
[408350589,1773480633900,-300.0,0.00019763,2]
[408350590,1773480633909,-472.08638576,0.00019763,2]
[408350591,1773480633919,-150.0,0.00019763,2]
[408350592,1773480633929,-500.0,0.00019763,2]
[408350593,1773480633940,-150.0,0.00019763,2]
[408350594,1773480633949,-555.19995139,0.00019765,2]
[408350595,1773480633959,-118.24549688,0.00019767,2]
[408350596,1773480633971,-3376.80946202,0.00019767,2]
[408350597,1773480633981,-18434.12224913,0.00019778,2]
[408350598,1773480633992,-14518.14995087,0.00019778,2]
[408350599,1773480634002,-150.0,0.00019781,2]
[408350600,1773480634016,-150.0,0.00019781,2]
[408350601,1773480634026,-150.0,0.00019781,2]
[408350602,1773480634035,-500.0,0.00019781,2]
[408350603,1773480634045,-500.0,0.00019781,2]
[408350604,1773480634055,-500.0,0.00019781,2]
[408350605,1773480634065,-500.0,0.00019781,2]
[408350606,1773480634074,-500.0,0.00019781,2]
[408350607,1773480634085,-3495.0549589,0.00019789,2]
[408350608,1773480634096,-500.0,0.00019799,2]
[408350609,1773480634105,-288.3240717,0.00019799,2]
[408350610,1773480634115,-500.0,0.00019799,2]
[408350611,1773480634124,-6329.71829412,0.000198,2]
[408350612,1773480634153,-761.34568309,0.000198,2]
[408350613,1773480634164,-644.71052742,0.000198,2]
[408350614,1773480634175,-80029.64706518,0.000198,2]
[408350615,1773480634190,-253.91423836,0.000198,2]
[408350616,1773480634202,-1217.40443236,0.000198,2]
[408350618,1773480638099,-524.70815383,0.000189,2]
[408350619,1773480638109,-500.0,0.00019599,2]
[408350620,1773480638118,-500.0,0.00019654,2]
[408350621,1773480638127,-30.99184637,0.00019709,2]
[408350622,1773480638155,-469.00815363,0.00019709,2]
[408350623,1773480638165,-447.50384196,0.00019763,2]
[408350624,1773480638177,-52.49615804,0.00019763,2]
[408350625,1773480638186,-642.48576629,0.000198,2]
[408350626,1773480638263,-1050.0,0.000198,2]
[408350627,1773480638390,-802.62227483,0.000198,2]
[408350628,1773480638404,-2224.59407546,0.000198,2]
[408350629,1773480638418,-2739.63239553,0.000198,2]
[408350637,1773480638586,-968.12794408,0.000198,2]
[408350638,1773480638599,-1000.0,0.000198,2]
[408350640,1773480640289,-5171.06090328,0.000198,2]
[408350641,1773480640299,-526.59846192,0.000198,2]
[408350642,1773480640308,-1704.73209,0.000198,2]
[408350643,1773480640318,-1704.7321,0.000198,2]
[408350644,1773480640328,-200.0,0.000198,7]
[408350645,1773480640337,-3637.306943,0.000198,2]
[408350646,1773480640347,-1627.49169862,0.000198,2]
[408350647,1773480640356,-2000.0,0.000198,2]
[408350648,1773480640366,-1000.0,0.00019808,2]
[408350649,1773480640376,-2427.83281215,0.00019811,2]
[408350650,1773480640391,-308.67861533,0.00019811,2]
[408350651,1773480640410,-745.59599998,0.00019811,2]
[408350652,1773480640423,-12.94753144,0.00019811,2]
[408350653,1773480640433,-584.08538956,0.00019811,2]
[408350654,1773480640881,-2094.6244665,0.00019811,2]
[408350655,1773480640893,-958.59708692,0.00019811,2]
[408350656,1773480640903,-204.65270475,0.00019818,2]
[408350657,1773480640913,-577.0,0.00019818,2]
[408350658,1773480640925,-450.0,0.00019818,2]
[408350659,1773480640935,-200.0,0.00019818,2]
[408350660,1773480640945,-286.63340985,0.00019818,2]
[408350661,1773480640955,-151.97360178,0.00019818,2]
[408350662,1773480640964,-500.0,0.00019818,2]
[408350663,1773480640974,-1627.49169858,0.0001982,2]
[408350664,1773480640983,-3637.30694298,0.00019822,2]
[408350665,1773480640993,-3678.709,0.00019832,2]
[408350667,1773480641002,-174.115,0.00019832,2]
[408350669,1773480641013,-500.0,0.00019832,2]
[408350671,1773480641023,-500.0,0.00019832,2]
[408350672,1773480641032,-500.0,0.00019832,2]
[408350674,1773480641041,-500.0,0.00019832,2]
[408350676,1773480641051,-500.0,0.00019832,2]
[408350678,1773480641061,-500.0,0.00019832,2]
[408350680,1773480641071,-500.0,0.00019832,2]
[408350682,1773480641081,-172.64017654,0.00019832,2]
[408350683,1773480641091,-634.60789513,0.00019832,2]
[408350684,1773480641100,-3495.0549589,0.00019833,2]
[408350685,1773480641109,-3637.30694298,0.00019833,2]
[408350686,1773480641119,-150.0,0.00019835,2]
[408350687,1773480641128,-200.0,0.00019835,2]
[408350688,1773480641138,-500.0,0.00019835,2]
[408350689,1773480641147,-500.0,0.00019835,2]
[408350690,1773480641156,-500.0,0.00019835,2]
[408350691,1773480641165,-263.20543418,0.00019835,2]
[408350692,1773480641175,-500.0,0.00019835,2]
[408350693,1773480641184,-1627.49169858,0.0001984,2]
[408350694,1773480641193,-3637.30694298,0.00019844,2]
[408350695,1773480641202,-3495.0549589,0.00019856,2]
[408350696,1773480641211,-3637.30694298,0.00019856,2]
[408350697,1773480641221,-1627.49169858,0.0001986,2]
[408350698,1773480641230,-168.0,0.00019865,2]
[408350699,1773480641240,-3637.30694298,0.00019867,2]
[408350700,1773480641249,-492.69437203,0.00019873,2]
[408350701,1773480641259,-500.96532559,0.00019873,2]
[408350702,1773480641268,-500.0,0.00019873,2]
[408350703,1773480641277,-500.0,0.00019873,2]
[408350704,1773480641287,-501.70326432,0.00019873,2]
[408350705,1773480641296,-503.74649008,0.00019873,2]
[408350706,1773480641305,-502.2044896,0.00019873,2]
[408350707,1773480641314,-502.24459524,0.00019873,2]
[408350708,1773480641324,-500.0,0.00019873,2]
[408350709,1773480641333,-500.0,0.00019873,2]
[408350710,1773480641342,-160.048,0.00019873,2]
[408350711,1773480641351,-500.0,0.00019873,2]
[408350712,1773480641361,-500.0,0.00019873,2]
[408350713,1773480641371,-577.0,0.00019873,2]
[408350714,1773480641380,-500.0,0.00019873,2]
[408350715,1773480641389,-708.29,0.00019873,2]
[408350716,1773480641399,-168.0,0.00019877,2]
[408350717,1773480641409,-3495.0549589,0.00019878,2]
[408350718,1773480641418,-3637.30694298,0.00019878,2]
[408350719,1773480641427,-1627.49169858,0.0001988,2]
[408350720,1773480641437,-3637.30694298,0.00019889,2]
[408350721,1773480641447,-166.77040945,0.0001989,2]
[408350722,1773480641457,-275.91475605,0.0001989,2]
[408350723,1773480641467,-500.0,0.0001989,2]
[408350724,1773480641476,-500.0,0.0001989,2]
[408350725,1773480641485,-500.0,0.0001989,2]
[408350726,1773480641495,-500.0,0.0001989,2]
[408350727,1773480641505,-200.0,0.00019895,2]
[408350728,1773480641515,-500.0,0.00019899,2]
[408350729,1773480641525,-500.0,0.00019899,2]
[408350730,1773480641534,-500.0,0.00019899,2]
[408350731,1773480641544,-500.0,0.00019899,2]
[408350732,1773480641554,-500.0,0.00019899,2]
[408350733,1773480641563,-300.0,0.00019899,2]
[408350734,1773480641573,-666.0,0.00019899,2]
[408350735,1773480641583,-237.68843551,0.00019899,2]
[408350736,1773480641592,-166.75344905,0.00019899,2]
[408350737,1773480641602,-500.0,0.00019899,2]
[408350738,1773480641612,-338.24614904,0.00019899,2]
[408350739,1773480641621,-764538.27969646,0.000199,2]
[408350740,1773480641641,-37097.49130031,0.000199,2]
[408350741,1773480641652,-20391.13707399,0.000199,2]
[408350776,1773480646027,-6481.06841398,0.000199,2]
[408350777,1773480646039,-1980.96955014,0.000199,2]
[408350778,1773480646051,-264.49836615,0.000199,2]
[408350779,1773480646138,-9664.25934027,0.000199,2]
[408350780,1773480646197,-706.01949435,0.000199,2]
[408350781,1773480646209,-331093.20847397,0.000199,2]
[408350782,1773480646220,-1183.72033041,0.000199,2]
[408350783,1773480646466,-3250.84812992,0.000199,2]
[408350784,1773480646478,-726.45840155,0.000199,2]
[408350865,1773480739584,500.0,0.00015,30]
[408350866,1773480805578,171.24,9.422e-05,2]
[408350867,1773480805767,171.24,0.00011778,2]
[408350868,1773480805986,171.24,0.00014134,2]
[408350883,1773481832161,-309.88642084,0.00015107,2]
[408350884,1773481832215,-2266.53357916,0.00015107,2]
[408350885,1773481832227,-151.97,0.00015999,2]
[408350886,1773481832238,-1200.0,0.00015999,2]
[408350887,1773481832249,-38938.939431,0.00016,2]
[408350888,1773481832260,-171.24,0.00016489,2]
[408350889,1773481832272,-1282.94997998,0.0001665,2]
[408350890,1773481832283,-508.0,0.00017,2]
[408350891,1773481832294,-18203.0,0.00017,2]
[408350892,1773481832304,-507.0,0.00017,2]
[408350893,1773481832316,-1680.0,0.0001758,2]
[408350894,1773481832327,-500.0,0.00017655,2]
[408350895,1773481832337,-5533.0,0.000177,3]
[408350896,1773481832348,-262.091156,0.000179,2]
[408350897,1773481832359,-808.0,0.000179,2]
[408350898,1773481832372,-247.3325322,0.000179,2]
[408350899,1773481832383,-150.0,0.00017972,2]
[408350900,1773481832395,-250.0,0.00017988,2]
[408350901,1773481832409,-270.56828743,0.00018045,2]
[408350902,1773481832423,-262.09115599,0.00018101,2]
[408350904,1773481832434,-2525.38218835,0.00018175,2]
[408350905,1773481832447,-262.09115599,0.00018301,2]
[408350908,1773481832458,-5533.0,0.000184,5]
[408350910,1773481832469,-994.61,0.00018401,2]
[408350912,1773481832481,-6211.70790035,0.00018558,2]
[408350914,1773481832493,-1082.0588,0.00018559,2]
[408350916,1773481832503,-3921.53788924,0.00018573,2]
[408350918,1773481832513,-630.91594952,0.00018594,2]
[408350920,1773481832522,-524.5,0.00018648,3]
[408350923,1773481832533,-634.54,0.00018649,2]
[408350925,1773481832542,-634.54,0.00018649,2]
[408350927,1773481832551,-237.85,0.00018649,3]
[408350929,1773481832560,-151.0,0.00018656,2]
[408350930,1773481832570,-500.0,0.00018658,2]
[408350932,1773481832579,-500.0,0.00018658,2]
[408350934,1773481832589,-500.0,0.00018658,2]
[408350936,1773481832598,-500.0,0.00018658,2]
[408350939,1773481832814,-500.0,0.00018658,2]
[408350940,1773481832831,-500.0,0.00018658,2]
[408350941,1773481832843,-527.33413299,0.00018658,2]
[408350942,1773481832853,-500.0,0.00018658,2]
[408350943,1773481832862,-500.0,0.00018658,2]
[408350944,1773481832871,-500.0,0.00018658,2]
[408350945,1773481832880,-500.0,0.00018658,2]
[408350946,1773481832890,-500.0,0.00018658,2]
[408350947,1773481832899,-500.0,0.00018658,2]
[408350948,1773481832909,-500.0,0.00018658,2]
[408350949,1773481832918,-500.0,0.00018658,2]
[408350950,1773481832928,-200.0,0.00018658,2]
[408350951,1773481832937,-174.81914254,0.00018658,2]
[408350952,1773481832947,-500.0,0.00018658,2]
[408350953,1773481832956,-504.20218204,0.00018658,2]
[408350954,1773481832966,-159.01520008,0.00018658,2]
[408350955,1773481832976,-306.72230641,0.00018658,2]
[408350956,1773481832985,-193.44146046,0.00018658,2]
[408350957,1773481832994,-500.0,0.00018658,2]
[408350958,1773481833004,-500.0,0.00018658,2]
[408350959,1773481833013,-500.0,0.00018658,2]
[408350960,1773481833023,-500.0,0.00018658,2]
[408350961,1773481833032,-500.0,0.00018658,2]
[408350962,1773481833042,-500.0,0.00018658,2]
[408350963,1773481833051,-500.0,0.00018658,2]
[408350964,1773481833061,-500.0,0.00018658,2]
[408350965,1773481833071,-500.0,0.00018658,2]
[408350966,1773481833081,-500.0,0.00018658,2]
[408350967,1773481833090,-500.0,0.00018658,2]
[408350968,1773481833100,-500.0,0.00018658,2]
[408350969,1773481833109,-500.0,0.00018658,2]
[408350970,1773481833118,-420.4659808,0.00018658,2]
[408350971,1773481833131,-79.5340192,0.00018658,2]
[408350972,1773481833140,-271.94331255,0.00018658,2]
[408350973,1773481833149,-500.0,0.00018658,2]
[408350974,1773481833158,-500.0,0.00018658,2]
[408350975,1773481833167,-500.0,0.00018658,2]
[408350976,1773481833176,-500.0,0.00018658,2]
[408350977,1773481833185,-500.0,0.00018658,2]
[408350978,1773481833195,-500.0,0.00018658,2]
[408350979,1773481833204,-500.0,0.00018658,2]
[408350980,1773481833213,-500.0,0.00018658,2]
[408350981,1773481833222,-500.0,0.00018658,2]
[408350982,1773481833231,-500.0,0.00018658,2]
[408350983,1773481833241,-500.0,0.00018658,2]
[408350984,1773481833250,-500.0,0.00018658,2]
[408350985,1773481833259,-500.0,0.00018658,2]
[408350986,1773481833270,-500.0,0.00018658,2]
[408350987,1773481833279,-500.0,0.00018658,2]
[408350988,1773481833289,-500.0,0.00018658,2]
[408350989,1773481833298,-500.0,0.00018658,2]
[408350990,1773481833308,-500.0,0.00018658,2]
[408350991,1773481833317,-500.0,0.00018658,2]
[408350992,1773481833326,-500.0,0.00018658,2]
[408350993,1773481833336,-500.0,0.00018658,2]
[408350994,1773481833345,-500.0,0.00018658,2]
[408350995,1773481833354,-365.38896661,0.00018658,2]
[408350996,1773481833365,-500.0,0.00018658,2]
[408350997,1773481833375,-500.0,0.00018658,2]
[408350998,1773481833385,-500.0,0.00018658,2]
[408350999,1773481833395,-500.0,0.00018658,2]
[408351000,1773481833406,-500.0,0.00018658,2]
[408351001,1773481833418,-500.0,0.00018658,2]
[408351002,1773481833427,-500.0,0.00018658,2]
[408351003,1773481833437,-500.0,0.00018658,2]
[408351004,1773481833447,-500.0,0.00018658,2]
[408351005,1773481833456,-500.0,0.00018658,2]
[408351006,1773481833466,-176.52326451,0.00018658,2]
[408351007,1773481833475,-500.0,0.00018658,2]
[408351008,1773481833485,-204.23554656,0.00018658,2]
[408351009,1773481833494,-32811.73480508,0.00018658,2]
[408351010,1773481833506,-531.98616948,0.00018658,2]
[408351011,1773481833515,-500.0,0.00018658,2]
[408351012,1773481833525,-500.0,0.00018658,2]
[408351013,1773481833534,-708.29,0.00018658,2]
[408351014,1773481833542,-500.0,0.00018658,2]
[408351015,1773481833551,-507.40236472,0.00018658,2]
[408351016,1773481833561,-500.0,0.00018658,2]
[408351017,1773481833571,-500.0,0.00018658,2]
[408351018,1773481833580,-500.0,0.00018658,2]
[408351019,1773481833589,-500.0,0.00018658,2]
[408351020,1773481833599,-268.2444654,0.00018658,2]
[408351021,1773481833610,-231.7555346,0.00018658,2]
[408351022,1773481833620,-234.78036586,0.00018658,2]
[408351023,1773481833631,-265.21963414,0.00018658,2]
[408351024,1773481833640,-121.88536586,0.00018673,2]
[408351025,1773481833652,-378.11463414,0.00018673,2]
[408351026,1773481833662,-500.0,0.00018673,2]
[408351027,1773481833671,-319.30548858,0.00018673,2]
[408351028,1773481833681,-417.72524379,0.00018694,2]
[408351029,1773481833707,-264.21284414,0.00018694,2]
[408351030,1773481833716,-1297.47559821,0.0001872,2]
[408351031,1773481833728,-412.77728069,0.0001872,2]
[408351032,1773481833747,-778.30235021,0.0001872,2]
[408351033,1773481833758,-575.5876787,0.0001872,2]
[408351034,1773481833770,-857.39498139,0.0001872,2]
[408351035,1773481833780,-278.0,0.0001876,2]
[408351036,1773481833789,-171.24,0.00018845,2]
[408351037,1773481833798,-3823.7805697,0.00018868,2]
[408351038,1773481833826,-97.7573195,0.00018868,2]
[408351039,1773481833836,-250.72299322,0.00018905,2]
[408351040,1773481833845,-236.91163927,0.00018932,2]
[408351046,1773481838246,-1185.28741343,0.00018707,2]
[408351047,1773481838290,-802.62227483,0.00018707,2]
[408351048,1773481838303,-2224.59407546,0.00018707,2]
[408351049,1773481838318,-1999.20413662,0.00018707,2]
[408351050,1773481838327,-471.37836073,0.00018932,2]
[408351051,1773481838336,-181.08010149,0.00018967,2]
[408351052,1773481838346,-87.96979669,0.00018967,2]
[408351053,1773481838372,-189.38699383,0.00018967,2]
[408351054,1773481838382,-1618.47177865,0.0001899,2]
[408351055,1773481838393,-1068.52822135,0.0001899,2]
[408351056,1773481838404,-189.15878436,0.00018995,2]
[408351057,1773481838416,-198.80753809,0.00018995,2]
[408351058,1773481838425,-786.47001,0.00019,2]
[408351059,1773481838435,-634.54,0.00019005,2]
[408351060,1773481838446,-356.27761825,0.00019015,2]
[408351061,1773481838461,-1386.35636678,0.00019015,2]
[408351062,1773481838480,-301.22878301,0.00019015,2]
[408351063,1773481838492,-1877.67512116,0.00019015,2]
[408351064,1773481838502,-350.0,0.00019049,2]
[408351065,1773481838511,-397.17,0.00019087,2]
[408351066,1773481838531,-796.26084935,0.00019088,2]
[408351067,1773481838549,-1890.73915065,0.00019088,2]
[408351068,1773481838560,-3921.5378892,0.00019163,2]
[408351069,1773481838571,-350.0,0.00019194,2]
[408351071,1773481838581,-708.29,0.00019205,2]
[408351073,1773481838591,-1006.68660366,0.0001922,2]
[408351075,1773481838600,-1000.0,0.00019221,2]
[408351077,1773481838610,-1000.0,0.00019221,2]
[408351079,1773481838620,-634.54,0.00019231,2]
[408351081,1773481838630,-634.54,0.00019231,2]
[408351083,1773481838639,-151.0,0.00019238,2]
[408351085,1773481838648,-500.0,0.0001924,2]
[408351087,1773481838659,-500.0,0.0001924,2]
[408351089,1773481838668,-500.0,0.0001924,2]
[408351091,1773481838678,-322.57435649,0.0001924,2]
[408351093,1773481838690,-177.42564351,0.0001924,2]
[408351095,1773481838700,-500.0,0.0001924,2]
[408351097,1773481838709,-500.0,0.0001924,2]
[408351099,1773481838719,-500.0,0.0001924,2]
[408351101,1773481838728,-23332.95561633,0.00019241,2]
[408351103,1773481838740,-313.1450597,0.00019241,2]
[408351256,1773481840476,-2019.91513355,0.00018856,2]
[408351263,1773481840534,-461.04710144,0.00018856,2]
[408351265,1773481840546,-544.2039824,0.00018856,2]
[408351315,1773481841013,-3186.54168295,0.00018856,2]
[408351317,1773481841022,-209938.07342397,0.00019241,2]
[408351319,1773481841032,-1999.0,0.0001926,2]
[408351321,1773481841041,-160.04800096,0.00019273,2]
[408351323,1773481841050,-500.0,0.00019273,2]
[408351325,1773481841059,-500.0,0.00019273,2]
[408351327,1773481841069,-500.0,0.00019273,2]
[408351329,1773481841080,-500.0,0.00019273,2]
[408351331,1773481841089,-500.0,0.00019273,2]
[408351333,1773481841098,-160.048,0.00019273,2]
[408351335,1773481841108,-500.0,0.00019273,2]
[408351337,1773481841120,-3921.5378892,0.0001931,2]
[408351339,1773481841130,-2351.0,0.00019317,2]
[408351341,1773481841139,-508.0,0.00019333,4]
[408351343,1773481841149,-168.0,0.00019368,2]
[408351345,1773481841158,-1000.0,0.00019384,2]
[408351347,1773481841168,-700.0,0.000194,7]
[408351349,1773481841177,-841.28428966,0.000194,2]
[408351351,1773481841186,-168.0,0.0001942,2]
[408351353,1773481841196,-167.89,0.00019431,2]
[408351355,1773481841205,-167.89,0.00019431,2]
[408351357,1773481841215,-167.89,0.00019431,2]
[408351359,1773481841224,-167.89,0.00019431,2]
[408351361,1773481841235,-1999.0,0.00019452,2]
[408351363,1773481841244,-1220.0,0.00019452,2]
[408351365,1773481841255,-3921.5378892,0.00019458,2]
[408351367,1773481841265,-708.29,0.00019479,2]
[408351369,1773481841275,-2000.0,0.000195,2]